[Event "Early-Titled-Tuesday-Blitz-February-27-2024"]
[Site "Chess.com"]
[Date "2024.02.27"]
[Round "6"]
[White "Boundless_Strike"]
[Black "Al_Shima"]
[Result "1-0"]
[WhiteElo "2620"]
[BlackElo "2417"]
[TimeControl "180+1"]
[EndTime "9:07:17 PST"]
[Termination "Boundless_Strike won on time"]

1. d4 {[%clk 0:03:00.9]} 1... Nf6 {[%clk 0:03:00]} 2. f3 {[%clk 0:03:01.1]} 2...
d5 {[%clk 0:02:59.7]} 3. e4 {[%clk 0:03:01.6]} 3... dxe4 {[%clk 0:02:58.9]} 4.
Nc3 {[%clk 0:03:02.2]} 4... exf3 {[%clk 0:02:40]} 5. Nxf3 {[%clk 0:03:02]} 5...
Bf5 {[%clk 0:02:31.5]} 6. Ne5 {[%clk 0:03:01]} 6... e6 {[%clk 0:02:28.6]} 7. g4
{[%clk 0:03:00.8]} 7... Be4 {[%clk 0:02:16.7]} 8. Nxe4 {[%clk 0:02:59.5]} 8...
Nxe4 {[%clk 0:02:17.6]} 9. Qf3 {[%clk 0:02:59.6]} 9... Qh4+ {[%clk 0:01:48.8]}
10. Kd1 {[%clk 0:02:59.6]} 10... Nd6 {[%clk 0:01:41]} 11. Bf4 {[%clk 0:01:51.9]}
11... Qd8 {[%clk 0:01:10.2]} 12. Kd2 {[%clk 0:01:34.7]} 12... Be7 {[%clk
0:01:01.3]} 13. Rd1 {[%clk 0:01:33.9]} 13... Bg5 {[%clk 0:00:47.6]} 14. h4
{[%clk 0:01:27.4]} 14... Bxf4+ {[%clk 0:00:43.7]} 15. Qxf4 {[%clk 0:01:27.6]}
15... Nd7 {[%clk 0:00:39.6]} 16. Kc1 {[%clk 0:01:25]} 16... Qe7 {[%clk
0:00:32.1]} 17. g5 {[%clk 0:01:11.5]} 17... O-O-O {[%clk 0:00:29.8]} 18. Bg2
{[%clk 0:01:12]} 18... Nxe5 {[%clk 0:00:26.6]} 19. Qxe5 {[%clk 0:01:06.9]} 19...
Nf5 {[%clk 0:00:22.2]} 20. Be4 {[%clk 0:00:41.1]} 20... Nd6 {[%clk 0:00:17.8]}
21. Bd3 {[%clk 0:00:39.3]} 21... Kb8 {[%clk 0:00:17.6]} 22. Rhf1 {[%clk
0:00:39.1]} 22... g6 {[%clk 0:00:14.2]} 23. c4 {[%clk 0:00:38]} 23... Qd7 {[%clk
0:00:10.4]} 24. c5 {[%clk 0:00:31.9]} 24... Nf5 {[%clk 0:00:09.7]} 25. Bxf5
{[%clk 0:00:32.3]} 25... exf5 {[%clk 0:00:10.6]} 26. d5 {[%clk 0:00:30.4]} 26...
Rhe8 {[%clk 0:00:10.6]} 27. Qg7 {[%clk 0:00:23.9]} 27... Re4 {[%clk 0:00:10.8]}
28. Kb1 {[%clk 0:00:22.7]} 28... Rc4 {[%clk 0:00:08.6]} 29. c6 {[%clk
0:00:20.4]} 29... bxc6 {[%clk 0:00:08.1]} 30. b3 {[%clk 0:00:17.9]} 30... Rc5
{[%clk 0:00:05.3]} 31. dxc6 {[%clk 0:00:18.4]} 31... Qxd1+ {[%clk 0:00:05.3]}
32. Rxd1 {[%clk 0:00:19.3]} 32... Rxd1+ {[%clk 0:00:05.5]} 33. Kb2 {[%clk
0:00:19.8]} 33... Rxc6 {[%clk 0:00:05.9]} 34. Qxf7 {[%clk 0:00:15.5]} 34... Rd2+
{[%clk 0:00:06]} 35. Ka3 {[%clk 0:00:14.3]} 35... Ra6+ {[%clk 0:00:06.4]} 36.
Kb4 {[%clk 0:00:15]} 36... Rb6+ {[%clk 0:00:07]} 37. Kc3 {[%clk 0:00:14.9]}
37... Rdd6 {[%clk 0:00:03.7]} 38. Qxh7 {[%clk 0:00:13.4]} 38... Rbc6+ {[%clk
0:00:04.3]} 39. Kb2 {[%clk 0:00:13.4]} 39... Rd2+ {[%clk 0:00:04.3]} 40. Ka3
{[%clk 0:00:14]} 40... Ra6+ {[%clk 0:00:04.5]} 41. Kb4 {[%clk 0:00:14.6]} 41...
Rb6+ {[%clk 0:00:04.8]} 42. Kc3 {[%clk 0:00:14.9]} 42... Rdd6 {[%clk 0:00:03.2]}
43. a4 {[%clk 0:00:14.7]} 43... a5 {[%clk 0:00:02.7]} 44. h5 {[%clk 0:00:14.1]}
44... Rbc6+ {[%clk 0:00:03.1]} 45. Kb2 {[%clk 0:00:14]} 45... Rd2+ {[%clk
0:00:02.5]} 46. Ka3 {[%clk 0:00:14.4]} 46... Rcc2 {[%clk 0:00:02.3]} 47. Qh8+
{[%clk 0:00:12.5]} 47... Kb7 {[%clk 0:00:02]} 48. Qa1 {[%clk 0:00:08.6]} 48...
gxh5 {[%clk 0:00:01.7]} 49. g6 {[%clk 0:00:08.1]} 49... Rg2 {[%clk 0:00:02.2]}
50. Qh1 {[%clk 0:00:06.9]} 50... Ka7 {[%clk 0:00:02.3]} 51. Qb1 {[%clk
0:00:06.7]} 51... Rcf2 {[%clk 0:00:01.7]} 52. Qa1 {[%clk 0:00:02.1]} 52... h4
{[%clk 0:00:02]} 53. g7 {[%clk 0:00:02.1]} 53... h3 {[%clk 0:00:02.6]} 54. Qd4+
{[%clk 0:00:02.4]} 54... Kb7 {[%clk 0:00:02.9]} 55. Qd5+ {[%clk 0:00:02.8]}
55... Kb8 {[%clk 0:00:03]} 56. Qd8+ {[%clk 0:00:02.9]} 56... Kb7 {[%clk
0:00:03]} 57. Qd5+ {[%clk 0:00:02.3]} 57... Kb6 {[%clk 0:00:02.9]} 58. Qd4+
{[%clk 0:00:02.4]} 58... Kb7 {[%clk 0:00:03.3]} 59. Qxf2 {[%clk 0:00:03]} 59...
Rxf2 {[%clk 0:00:01.8]} 60. g8=Q {[%clk 0:00:03.1]} 60... h2 {[%clk 0:00:02.7]}
61. Qd5+ {[%clk 0:00:03.3]} 61... Kb6 {[%clk 0:00:02.8]} 62. Qb5+ {[%clk
0:00:03.5]} 62... Ka7 {[%clk 0:00:02.6]} 63. Qxa5+ {[%clk 0:00:04]} 63... Kb8
{[%clk 0:00:03.3]} 64. Qb5+ {[%clk 0:00:03.9]} 64... Kc8 {[%clk 0:00:03.5]} 65.
Qe8+ {[%clk 0:00:04.5]} 65... Kb7 {[%clk 0:00:03.9]} 66. Qh5 {[%clk 0:00:04.9]}
66... f4 {[%clk 0:00:04]} 67. a5 {[%clk 0:00:05.5]} 67... f3 {[%clk 0:00:04.4]}
68. Ka4 {[%clk 0:00:06]} 68... Ra2+ {[%clk 0:00:02.5]} 69. Kb5 {[%clk 0:00:06]}
69... f2 {[%clk 0:00:02.2]} 70. Qf3+ {[%clk 0:00:06.2]} 70... Kc8 {[%clk
0:00:01.6]} 71. Qh3+ {[%clk 0:00:06.3]} 71... Kb7 {[%clk 0:00:01.7]} 72. Qg2+
{[%clk 0:00:05.5]} 72... Ka7 {[%clk 0:00:02]} 73. Qf3 {[%clk 0:00:03.6]} 73...
Ra1 {[%clk 0:00:01.2]} 74. Qxf2+ {[%clk 0:00:03.4]} 74... Kb8 {[%clk 0:00:01.8]}
75. Qxh2 {[%clk 0:00:03.8]} 75... Rc1 {[%clk 0:00:01.9]} 76. b4 {[%clk
0:00:04.2]} 76... Ka7 {[%clk 0:00:02.8]} 77. Qf2+ {[%clk 0:00:03.7]} 77... Kb7
{[%clk 0:00:03]} 78. Qf3+ {[%clk 0:00:03.9]} 78... c6+ {[%clk 0:00:03.4]} 79.
Ka4 {[%clk 0:00:03.7]} 79... Ka6 {[%clk 0:00:04.3]} 80. Qe3 {[%clk 0:00:02.6]}
80... Ra1+ {[%clk 0:00:04.3]} 81. Kb3 {[%clk 0:00:03.2]} 81... Rb1+ {[%clk
0:00:04.8]} 82. Kc2 {[%clk 0:00:03.3]} 82... Rxb4 {[%clk 0:00:04.8]} 83. Qc5
{[%clk 0:00:02.7]} 83... Rb5 {[%clk 0:00:02.8]} 84. Qxc6+ {[%clk 0:00:03.3]}
84... Kxa5 {[%clk 0:00:03.7]} 85. Kc3 {[%clk 0:00:04]} 85... Rb6 {[%clk
0:00:04]} 86. Qc7 {[%clk 0:00:04]} 86... Ka6 {[%clk 0:00:04.5]} 87. Kc4 {[%clk
0:00:04.4]} 87... Rb7 {[%clk 0:00:04.4]} 88. Qc8 {[%clk 0:00:04.9]} 88... Ka7
{[%clk 0:00:04.7]} 89. Kc5 {[%clk 0:00:05.4]} 89... Rh7 {[%clk 0:00:01.8]} 90.
Qe6 {[%clk 0:00:04.5]} 90... Rh5+ {[%clk 0:00:02.1]} 91. Kc6 {[%clk 0:00:04.9]}
91... Rh7 {[%clk 0:00:02.1]} 92. Qa2+ {[%clk 0:00:05]} 92... Kb8 {[%clk
0:00:02.3]} 93. Qb1+ {[%clk 0:00:05.7]} 1-0

[Event "Early-Titled-Tuesday-Blitz-February-27-2024"]
[Site "Chess.com"]
[Date "2024.02.27"]
[Round "7"]
[White "Iskusnyh"]
[Black "joksijoksi"]
[Result "1-0"]
[WhiteElo "2677"]
[BlackElo "2490"]
[TimeControl "180+1"]
[EndTime "9:11:43 PST"]
[Termination "Iskusnyh won by resignation"]

1. d4 {[%clk 0:03:00.5]} 1... Nf6 {[%clk 0:02:58.3]} 2. c4 {[%clk 0:02:59.3]}
2... g6 {[%clk 0:02:53.8]} 3. g3 {[%clk 0:02:57.5]} 3... Bg7 {[%clk 0:02:52.4]}
4. Bg2 {[%clk 0:02:54.6]} 4... O-O {[%clk 0:02:52.5]} 5. Nc3 {[%clk 0:02:55.1]}
5... d6 {[%clk 0:02:52.9]} 6. Nf3 {[%clk 0:02:53.8]} 6... Nbd7 {[%clk
0:02:53.3]} 7. O-O {[%clk 0:02:48.6]} 7... c6 {[%clk 0:02:53.7]} 8. e4 {[%clk
0:02:48.4]} 8... Qa5 {[%clk 0:02:53.3]} 9. h3 {[%clk 0:02:45.6]} 9... Nb6 {[%clk
0:02:50]} 10. Qe2 {[%clk 0:02:37.5]} 10... Qh5 {[%clk 0:02:48.1]} 11. e5 {[%clk
0:02:26.1]} 11... dxe5 {[%clk 0:02:43.2]} 12. dxe5 {[%clk 0:02:26.9]} 12... Ne8
{[%clk 0:02:23.1]} 13. g4 {[%clk 0:02:24.1]} 13... Bxg4 {[%clk 0:02:23.6]} 14.
hxg4 {[%clk 0:02:25]} 14... Qxg4 {[%clk 0:02:24]} 15. b3 {[%clk 0:02:19.7]}
15... Nc7 {[%clk 0:02:23.6]} 16. Qe4 {[%clk 0:02:04.3]} 16... Qg5 {[%clk
0:02:23.1]} 17. Bxg5 {[%clk 0:02:02.3]} 1-0

[Event "Early-Titled-Tuesday-Blitz-February-27-2024"]
[Site "Chess.com"]
[Date "2024.02.27"]
[Round "7"]
[White "sotochess"]
[Black "Schachmalanders"]
[Result "1-0"]
[WhiteElo "2628"]
[BlackElo "2469"]
[TimeControl "180+1"]
[EndTime "9:12:17 PST"]
[Termination "sotochess won by checkmate"]

1. e4 {[%clk 0:03:00]} 1... e6 {[%clk 0:02:57.4]} 2. Qe2 {[%clk 0:02:59]} 2...
c5 {[%clk 0:02:54]} 3. Nf3 {[%clk 0:02:58.3]} 3... Nc6 {[%clk 0:02:54]} 4. g3
{[%clk 0:02:57.5]} 4... Be7 {[%clk 0:02:53.1]} 5. Bg2 {[%clk 0:02:57.4]} 5... d5
{[%clk 0:02:53.3]} 6. d3 {[%clk 0:02:57]} 6... dxe4 {[%clk 0:02:51.7]} 7. dxe4
{[%clk 0:02:56.4]} 7... Nf6 {[%clk 0:02:52.2]} 8. e5 {[%clk 0:02:55.4]} 8... Nd5
{[%clk 0:02:51.2]} 9. O-O {[%clk 0:02:52.9]} 9... O-O {[%clk 0:02:51.2]} 10. Rd1
{[%clk 0:02:52.1]} 10... Qc7 {[%clk 0:02:47.7]} 11. c4 {[%clk 0:02:47.7]} 11...
Nb6 {[%clk 0:02:43.1]} 12. Nc3 {[%clk 0:02:47]} 12... a6 {[%clk 0:02:36.4]} 13.
Bf4 {[%clk 0:02:45.3]} 13... Nd4 {[%clk 0:02:26.6]} 14. Nxd4 {[%clk 0:02:42.5]}
14... cxd4 {[%clk 0:02:26.9]} 15. Rxd4 {[%clk 0:02:43.4]} 15... Bc5 {[%clk
0:02:26.9]} 16. Rdd1 {[%clk 0:02:27.7]} 16... Bd7 {[%clk 0:02:09.4]} 17. Ne4
{[%clk 0:02:20.6]} 17... Be7 {[%clk 0:02:07.8]} 18. Nf6+ {[%clk 0:02:17.8]}
18... gxf6 {[%clk 0:01:47.3]} 19. exf6 {[%clk 0:02:16.5]} 19... Qxc4 {[%clk
0:01:39.8]} 20. Qg4+ {[%clk 0:02:15]} 20... Kh8 {[%clk 0:01:39.3]} 21. Qg7#
{[%clk 0:02:14.6]} 1-0

[Event "Early-Titled-Tuesday-Blitz-February-27-2024"]
[Site "Chess.com"]
[Date "2024.02.27"]
[Round "7"]
[White "salomez"]
[Black "whiteglovethief"]
[Result "0-1"]
[WhiteElo "2320"]
[BlackElo "2504"]
[TimeControl "180+1"]
[EndTime "9:12:19 PST"]
[Termination "whiteglovethief won by resignation"]

1. e4 {[%clk 0:03:00.9]} 1... e6 {[%clk 0:02:59.3]} 2. d4 {[%clk 0:03:00.7]}
2... d5 {[%clk 0:02:59.7]} 3. exd5 {[%clk 0:02:56.7]} 3... exd5 {[%clk 0:02:59]}
4. Bd3 {[%clk 0:02:56.3]} 4... c5 {[%clk 0:02:58.4]} 5. dxc5 {[%clk 0:02:53]}
5... Bxc5 {[%clk 0:02:59.3]} 6. Nf3 {[%clk 0:02:52.8]} 6... Nf6 {[%clk
0:02:59.6]} 7. O-O {[%clk 0:02:52.8]} 7... O-O {[%clk 0:03:00.3]} 8. Nbd2 {[%clk
0:02:51.8]} 8... Bg4 {[%clk 0:02:57.5]} 9. h3 {[%clk 0:02:50.3]} 9... Bh5 {[%clk
0:02:57]} 10. Nb3 {[%clk 0:02:46.9]} 10... Bb6 {[%clk 0:02:55.2]} 11. Bg5 {[%clk
0:02:45.7]} 11... Qd6 {[%clk 0:02:52.5]} 12. Bh4 {[%clk 0:02:35.2]} 12... Nc6
{[%clk 0:02:47.4]} 13. c3 {[%clk 0:02:33.7]} 13... h6 {[%clk 0:02:46]} 14. Be2
{[%clk 0:02:33.3]} 14... g5 {[%clk 0:02:45.2]} 15. Nxg5 {[%clk 0:02:26.7]} 15...
hxg5 {[%clk 0:02:44]} 16. Bxh5 {[%clk 0:02:24]} 16... gxh4 {[%clk 0:02:43]} 17.
Nd4 {[%clk 0:02:05.7]} 17... Qf4 {[%clk 0:02:34.1]} 18. Re1 {[%clk 0:01:47.8]}
18... Nxd4 {[%clk 0:02:27.3]} 19. cxd4 {[%clk 0:01:47]} 19... Qxd4 {[%clk
0:02:19.5]} 20. Qxd4 {[%clk 0:01:45.4]} 20... Bxd4 {[%clk 0:02:19.1]} 21. Bf3
{[%clk 0:01:42.3]} 21... Bxb2 {[%clk 0:02:18.8]} 22. Rab1 {[%clk 0:01:42.4]}
22... Bc3 {[%clk 0:02:19.2]} 23. Rxb7 {[%clk 0:01:43]} 23... Bxe1 {[%clk
0:02:18.1]} 0-1

[Event "Early-Titled-Tuesday-Blitz-February-27-2024"]
[Site "Chess.com"]
[Date "2024.02.27"]
[Round "7"]
[White "Rogarcia1"]
[Black "TregubovP"]
[Result "0-1"]
[WhiteElo "2508"]
[BlackElo "2682"]
[TimeControl "180+1"]
[EndTime "9:12:23 PST"]
[Termination "TregubovP won by resignation"]

1. e4 {[%clk 0:03:00.9]} 1... c5 {[%clk 0:02:59.1]} 2. Nf3 {[%clk 0:03:00.7]}
2... e6 {[%clk 0:02:58.8]} 3. d4 {[%clk 0:03:01]} 3... cxd4 {[%clk 0:02:59.3]}
4. Nxd4 {[%clk 0:03:01.7]} 4... Nf6 {[%clk 0:02:59.7]} 5. Bd3 {[%clk 0:02:59.2]}
5... Nc6 {[%clk 0:02:58]} 6. Nxc6 {[%clk 0:02:58.3]} 6... bxc6 {[%clk
0:02:58.1]} 7. O-O {[%clk 0:02:58.9]} 7... d5 {[%clk 0:02:57.9]} 8. e5 {[%clk
0:02:58]} 8... Nd7 {[%clk 0:02:57.4]} 9. Re1 {[%clk 0:02:58.4]} 9... Be7 {[%clk
0:02:54.2]} 10. Nc3 {[%clk 0:02:54.2]} 10... O-O {[%clk 0:02:53.7]} 11. h4
{[%clk 0:02:52.9]} 11... Bxh4 {[%clk 0:02:38.8]} 12. Qh5 {[%clk 0:02:45.2]}
12... g6 {[%clk 0:02:27.7]} 13. Qh6 {[%clk 0:02:45.5]} 13... f5 {[%clk
0:02:16.9]} 14. g3 {[%clk 0:02:30.7]} 14... Be7 {[%clk 0:02:16.4]} 15. Kg2
{[%clk 0:02:30.2]} 15... Rf7 {[%clk 0:02:16.4]} 16. Rh1 {[%clk 0:02:27.4]} 16...
Nxe5 {[%clk 0:02:13.5]} 17. Bf4 {[%clk 0:02:23.9]} 17... Ng4 {[%clk 0:02:06.3]}
18. Qh3 {[%clk 0:02:21.5]} 18... d4 {[%clk 0:02:06.4]} 19. Ne2 {[%clk 0:02:21]}
19... Qd5+ {[%clk 0:01:54.9]} 20. Kf1 {[%clk 0:02:17.2]} 20... e5 {[%clk
0:01:53.4]} 21. b3 {[%clk 0:02:17]} 21... Be6 {[%clk 0:01:43.2]} 22. Bc4 {[%clk
0:02:13]} 22... Qf3 {[%clk 0:01:42.8]} 0-1

[Event "Early-Titled-Tuesday-Blitz-February-27-2024"]
[Site "Chess.com"]
[Date "2024.02.27"]
[Round "7"]
[White "WiktoriaPOL"]
[Black "BillCoe"]
[Result "1-0"]
[WhiteElo "2255"]
[BlackElo "2093"]
[TimeControl "180+1"]
[EndTime "9:12:31 PST"]
[Termination "WiktoriaPOL won by resignation"]

1. c4 {[%clk 0:03:00.9]} 1... g6 {[%clk 0:02:59.3]} 2. Nc3 {[%clk 0:03:00.7]}
2... Bg7 {[%clk 0:02:59.8]} 3. g3 {[%clk 0:03:01.1]} 3... d6 {[%clk 0:03:00.1]}
4. Bg2 {[%clk 0:03:01.6]} 4... Nf6 {[%clk 0:03:00.6]} 5. e4 {[%clk 0:03:01.9]}
5... O-O {[%clk 0:03:01]} 6. Nge2 {[%clk 0:03:02.2]} 6... c5 {[%clk 0:03:00.2]}
7. O-O {[%clk 0:03:02.8]} 7... Nc6 {[%clk 0:03:00.1]} 8. d3 {[%clk 0:03:03.2]}
8... a6 {[%clk 0:03:00]} 9. h3 {[%clk 0:03:03.3]} 9... Be6 {[%clk 0:02:57.9]}
10. Be3 {[%clk 0:03:02.8]} 10... Rb8 {[%clk 0:02:57.2]} 11. a4 {[%clk
0:03:02.6]} 11... b6 {[%clk 0:02:56.6]} 12. b3 {[%clk 0:03:00.4]} 12... Qd7
{[%clk 0:02:56.7]} 13. Kh2 {[%clk 0:02:59.1]} 13... h6 {[%clk 0:02:53.6]} 14. d4
{[%clk 0:02:58.9]} 14... cxd4 {[%clk 0:02:51.7]} 15. Nxd4 {[%clk 0:02:59.8]}
15... Nxd4 {[%clk 0:02:51.6]} 16. Bxd4 {[%clk 0:02:59.2]} 16... Nh7 {[%clk
0:02:48.3]} 17. Bxg7 {[%clk 0:02:55.9]} 17... Kxg7 {[%clk 0:02:49.2]} 18. f4
{[%clk 0:02:56.2]} 18... f5 {[%clk 0:02:32.5]} 19. exf5 {[%clk 0:02:49.1]} 19...
Bxf5 {[%clk 0:02:30.7]} 20. Nd5 {[%clk 0:02:46.4]} 20... Nf6 {[%clk 0:02:21]}
21. Qd4 {[%clk 0:02:40.5]} 21... Rf7 {[%clk 0:01:58.7]} 22. Nxf6 {[%clk
0:02:34.3]} 22... Rxf6 {[%clk 0:01:55.6]} 23. g4 {[%clk 0:02:30.5]} 23... Be6
{[%clk 0:01:54]} 24. g5 {[%clk 0:02:27.4]} 24... hxg5 {[%clk 0:01:51.4]} 25.
fxg5 {[%clk 0:02:28.3]} 25... Bf5 {[%clk 0:01:45.6]} 26. gxf6+ {[%clk
0:02:27.3]} 26... exf6 {[%clk 0:01:46.5]} 27. Rad1 {[%clk 0:02:23.4]} 27... Rh8
{[%clk 0:01:44.4]} 28. Qxd6 {[%clk 0:02:17.9]} 28... Bxh3 {[%clk 0:01:43.3]} 29.
Qxf6+ {[%clk 0:02:16.4]} 1-0

[Event "Early-Titled-Tuesday-Blitz-February-27-2024"]
[Site "Chess.com"]
[Date "2024.02.27"]
[Round "7"]
[White "Nikolakis2014"]
[Black "Casper"]
[Result "0-1"]
[WhiteElo "2741"]
[BlackElo "2564"]
[TimeControl "180+1"]
[EndTime "9:12:42 PST"]
[Termination "Casper won by resignation"]

1. d4 {[%clk 0:02:56.6]} 1... d5 {[%clk 0:02:59.1]} 2. c4 {[%clk 0:02:56.1]}
2... dxc4 {[%clk 0:03:00]} 3. Nf3 {[%clk 0:02:55.6]} 3... Nf6 {[%clk 0:03:00.6]}
4. e3 {[%clk 0:02:55.4]} 4... Bg4 {[%clk 0:03:01.3]} 5. Bxc4 {[%clk 0:02:54.5]}
5... e6 {[%clk 0:03:02]} 6. O-O {[%clk 0:02:49.8]} 6... a6 {[%clk 0:03:02.5]} 7.
h3 {[%clk 0:02:50]} 7... Bh5 {[%clk 0:03:02.3]} 8. Nc3 {[%clk 0:02:50.3]} 8...
Nc6 {[%clk 0:03:02.2]} 9. Qe2 {[%clk 0:02:45]} 9... Bd6 {[%clk 0:03:00.1]} 10.
g4 {[%clk 0:02:41.3]} 10... Nxg4 {[%clk 0:02:47.5]} 11. hxg4 {[%clk 0:02:36.9]}
11... Bxg4 {[%clk 0:02:48.4]} 12. Kg2 {[%clk 0:02:36.9]} 12... Qf6 {[%clk
0:02:36.1]} 13. Rg1 {[%clk 0:02:26.2]} 13... O-O-O {[%clk 0:02:13]} 14. Ne4
{[%clk 0:02:02.2]} 14... Qg6 {[%clk 0:02:11.3]} 15. Nxd6+ {[%clk 0:02:01.8]}
15... Rxd6 {[%clk 0:02:10.4]} 16. Kf1 {[%clk 0:01:59.4]} 16... Nb4 {[%clk
0:01:59.6]} 17. Bd2 {[%clk 0:01:47.2]} 17... Nc2 {[%clk 0:01:57.4]} 18. Rc1
{[%clk 0:01:43.9]} 18... Bh3+ {[%clk 0:01:57.2]} 0-1

[Event "Early-Titled-Tuesday-Blitz-February-27-2024"]
[Site "Chess.com"]
[Date "2024.02.27"]
[Round "7"]
[White "elchacal664"]
[Black "NtcPou"]
[Result "1-0"]
[WhiteElo "2418"]
[BlackElo "2011"]
[TimeControl "180+1"]
[EndTime "9:12:52 PST"]
[Termination "elchacal664 won by resignation"]

1. e4 {[%clk 0:02:59.7]} 1... c6 {[%clk 0:02:59.7]} 2. Nc3 {[%clk 0:02:59]} 2...
d5 {[%clk 0:02:59.7]} 3. Nf3 {[%clk 0:02:59.4]} 3... Bg4 {[%clk 0:02:59.4]} 4.
h3 {[%clk 0:02:58.8]} 4... Bxf3 {[%clk 0:02:59.2]} 5. Qxf3 {[%clk 0:02:59.7]}
5... e6 {[%clk 0:02:59.3]} 6. d3 {[%clk 0:02:58.1]} 6... Nf6 {[%clk 0:02:59.2]}
7. g4 {[%clk 0:02:57.5]} 7... Bb4 {[%clk 0:02:51.2]} 8. g5 {[%clk 0:02:55.4]}
8... Nfd7 {[%clk 0:02:50.1]} 9. Bd2 {[%clk 0:02:50.5]} 9... d4 {[%clk
0:02:48.9]} 10. Nb1 {[%clk 0:02:44.2]} 10... Bxd2+ {[%clk 0:02:47.2]} 11. Nxd2
{[%clk 0:02:45.1]} 11... c5 {[%clk 0:02:46.4]} 12. Qg2 {[%clk 0:02:37]} 12...
Nc6 {[%clk 0:02:45]} 13. f4 {[%clk 0:02:36.4]} 13... h6 {[%clk 0:02:34.3]} 14.
g6 {[%clk 0:02:25.3]} 14... Qh4+ {[%clk 0:02:32]} 15. Kd1 {[%clk 0:02:22.8]}
15... Qxf4 {[%clk 0:02:31.7]} 16. gxf7+ {[%clk 0:02:18.6]} 16... Qxf7 {[%clk
0:02:30.5]} 17. Nc4 {[%clk 0:02:01.7]} 17... Ke7 {[%clk 0:02:11.9]} 18. Qg3
{[%clk 0:01:45.9]} 18... e5 {[%clk 0:02:05.4]} 19. Be2 {[%clk 0:01:45.3]} 19...
b5 {[%clk 0:01:53.3]} 20. Rf1 {[%clk 0:01:44]} 20... Qe6 {[%clk 0:01:53]} 21.
Qxg7+ {[%clk 0:01:42.2]} 1-0

[Event "Early-Titled-Tuesday-Blitz-February-27-2024"]
[Site "Chess.com"]
[Date "2024.02.27"]
[Round "7"]
[White "janhelmer03"]
[Black "KacperKacprzak"]
[Result "0-1"]
[WhiteElo "2371"]
[BlackElo "2707"]
[TimeControl "180+1"]
[EndTime "9:13:19 PST"]
[Termination "KacperKacprzak won by resignation"]

1. d4 {[%clk 0:03:00.9]} 1... d5 {[%clk 0:02:55.2]} 2. c4 {[%clk 0:03:00.2]}
2... e6 {[%clk 0:02:55]} 3. cxd5 {[%clk 0:02:57.7]} 3... exd5 {[%clk 0:02:55.9]}
4. Nc3 {[%clk 0:02:55.5]} 4... c6 {[%clk 0:02:54.8]} 5. Nf3 {[%clk 0:02:49.6]}
5... Nf6 {[%clk 0:02:52.8]} 6. Qc2 {[%clk 0:02:48.5]} 6... g6 {[%clk 0:02:51.9]}
7. Bg5 {[%clk 0:02:48.6]} 7... Bf5 {[%clk 0:02:50.4]} 8. Qb3 {[%clk 0:02:43.1]}
8... b6 {[%clk 0:02:49.1]} 9. e3 {[%clk 0:02:41.2]} 9... Nbd7 {[%clk 0:02:48.4]}
10. Be2 {[%clk 0:02:28.1]} 10... Bg7 {[%clk 0:02:48.1]} 11. O-O {[%clk
0:02:26.3]} 11... O-O {[%clk 0:02:48.6]} 12. Rac1 {[%clk 0:02:25]} 12... h6
{[%clk 0:02:45]} 13. Bf4 {[%clk 0:02:22.9]} 13... Re8 {[%clk 0:02:36.4]} 14. Ne5
{[%clk 0:02:13.2]} 14... Nxe5 {[%clk 0:02:33.8]} 15. Bxe5 {[%clk 0:02:12.4]}
15... Qd7 {[%clk 0:02:21.4]} 16. Qa4 {[%clk 0:02:08.1]} 16... h5 {[%clk
0:02:17.9]} 17. Bf3 {[%clk 0:01:32.9]} 17... h4 {[%clk 0:02:14.6]} 18. Rfd1
{[%clk 0:01:31.5]} 18... h3 {[%clk 0:02:14.2]} 19. g3 {[%clk 0:01:31.7]} 19...
Bg4 {[%clk 0:02:12.2]} 20. Bxg4 {[%clk 0:01:27.4]} 20... Qxg4 {[%clk 0:02:13.1]}
21. Bxf6 {[%clk 0:01:05.4]} 21... Qf3 {[%clk 0:02:12.2]} 22. Kf1 {[%clk
0:01:04.2]} 22... Rxe3 {[%clk 0:02:07.4]} 0-1

[Event "Early-Titled-Tuesday-Blitz-February-27-2024"]
[Site "Chess.com"]
[Date "2024.02.27"]
[Round "7"]
[White "arnash_bauyrzhan"]
[Black "NovakRatko"]
[Result "0-1"]
[WhiteElo "2296"]
[BlackElo "2477"]
[TimeControl "180+1"]
[EndTime "9:13:24 PST"]
[Termination "NovakRatko won by resignation"]

1. e4 {[%clk 0:03:00.9]} 1... d5 {[%clk 0:02:59]} 2. exd5 {[%clk 0:03:00.3]}
2... c6 {[%clk 0:02:59.2]} 3. d4 {[%clk 0:02:56.2]} 3... cxd5 {[%clk 0:02:59.1]}
4. Nf3 {[%clk 0:02:55]} 4... Nc6 {[%clk 0:02:59.1]} 5. Bd3 {[%clk 0:02:54.4]}
5... Bg4 {[%clk 0:02:58.3]} 6. c3 {[%clk 0:02:52.9]} 6... f6 {[%clk 0:02:58.2]}
7. h3 {[%clk 0:02:51.1]} 7... Bh5 {[%clk 0:02:58]} 8. O-O {[%clk 0:02:45.8]}
8... e6 {[%clk 0:02:56.4]} 9. Nbd2 {[%clk 0:02:29.8]} 9... Bd6 {[%clk
0:02:55.6]} 10. Re1 {[%clk 0:02:27]} 10... Qd7 {[%clk 0:02:55.5]} 11. Qc2 {[%clk
0:02:24.2]} 11... Nge7 {[%clk 0:02:50.3]} 12. Bxh7 {[%clk 0:02:21.2]} 12... g6
{[%clk 0:02:50.2]} 13. g4 {[%clk 0:01:40.5]} 13... Rxh7 {[%clk 0:02:49.8]} 14.
Qd3 {[%clk 0:01:09.5]} 14... O-O-O {[%clk 0:02:46.6]} 15. gxh5 {[%clk
0:00:54.3]} 15... Rxh5 {[%clk 0:02:45.8]} 16. Kg2 {[%clk 0:00:52.8]} 16... e5
{[%clk 0:02:44.7]} 17. Nh2 {[%clk 0:00:44]} 17... e4 {[%clk 0:02:43]} 18. Qe3
{[%clk 0:00:40.8]} 18... Rdh8 {[%clk 0:02:14.8]} 0-1